bitfinex/quotes_ETHUSD_20251018
["timestamp","ask_amount","ask_price","bid_price","bid_amount"]
[1760782227608,0.04496615,3877.1,3877.0,0.97418292]
[1760782227767,0.04496615,3877.1,3877.0,0.97618292]
[1760782228103,0.04496615,3877.1,3877.0,0.52438292]
[1760782228304,0.04496615,3877.1,3877.0,0.97618292]
[1760782228702,0.04496615,3877.1,3877.0,0.52438292]
[1760782229007,0.04496615,3877.1,3877.0,0.97618292]
[1760782230076,0.04496615,3877.1,3877.0,1.15140271]
[1760782231503,0.40458726,3877.7,3877.0,1.15140271]
[1760782231804,0.40458726,3877.7,3877.6,0.2226]
[1760782232004,0.40458726,3877.7,3877.6,0.6744]
[1760782232395,0.40458726,3877.7,3877.6,1.45024434]
[1760782232617,3.83315606,3877.8,3877.3,0.2226]
[1760782232820,3.83315606,3877.5,3877.3,0.2226]
[1760782233137,3.83315606,3877.5,3877.4,0.77588246]
[1760782233306,3.83315606,3877.5,3877.4,1.22768246]
[1760782233835,3.87811583,3877.8,3877.4,1.22768246]
[1760782234203,3.83315606,3877.8,3877.5,0.4426]
[1760782234829,3.83975911,3877.8,3877.5,0.4426]
[1760782235031,3.83975911,3877.8,3877.4,0.77588246]
[1760782235235,0.1288,3877.4,3877.0,2.08980455]
[1760782235414,3.83975911,3877.5,3877.1,0.77588246]
[1760782235935,3.83975911,3877.2,3877.1,0.77588246]
[1760782236234,0.1288,3877.1,3877.0,0.52438292]
[1760782237237,0.1737639,3877.1,3877.0,0.52438292]
[1760782239434,0.5977639,3877.1,3877.0,0.52438292]
[1760782239615,1.44613702,3877.1,3877.0,0.52438292]
[1760782240422,3.45283209,3877.1,3877.0,0.52438292]
[1760782240727,0.87358472,3877.1,3877.0,0.52438292]
[1760782242049,5.88483572,3877.1,3877.0,0.52438292]
[1760782242243,27.52808409,3877.1,3877.0,0.52438292]
[1760782242548,20.91342609,3877.1,3877.0,0.52438292]
[1760782242841,23.04237619,3877.1,3877.0,0.52438292]
[1760782243244,5.58178219,3877.1,3877.0,0.52438292]
[1760782243547,23.22922219,3877.1,3877.0,0.52438292]
[1760782244045,19.11962729,3877.1,3877.0,0.52438292]
[1760782244344,21.77365629,3877.1,3877.0,0.52438292]
[1760782244513,20.77365629,3877.1,3877.0,0.52438292]
[1760782245844,21.17831065,3877.1,3877.0,0.52438292]
[1760782246344,25.17817983,3877.1,3877.0,0.52438292]
[1760782246555,24.84797983,3877.1,3877.0,0.52438292]
[1760782247355,35.98644483,3877.1,3877.0,0.52438292]
[1760782247666,18.74649083,3877.1,3877.0,0.52438292]
[1760782247827,15.42178083,3877.1,3877.0,0.52438292]
[1760782248025,14.85204083,3877.1,3877.0,0.52438292]
[1760782248226,11.81865846,3877.1,3877.0,0.52438292]
[1760782248457,8.24057346,3877.1,3877.0,0.52438292]
[1760782249031,6.46147446,3877.1,3877.0,0.52438292]
[1760782249239,3.24224554,3877.1,3877.0,0.52438292]
[1760782249440,0.44962654,3877.1,3877.0,0.52438292]
[1760782249869,0.44962654,3877.1,3877.0,0.96698292]
[1760782252143,0.40465436,3877.1,3877.0,0.96698292]
[1760782252345,0.40465436,3877.1,3877.0,0.52438292]
[1760782255486,0.44962223,3877.1,3877.0,0.52438292]
[1760782255982,0.04496787,3877.1,3877.0,0.52438292]
[1760782257162,0.04496787,3877.1,3877.0,0.96698292]
[1760782258858,0.04496787,3877.1,3877.0,2.53240455]
[1760782259992,0.04496787,3877.1,3877.0,2.08980455]
[1760782260163,0.04496787,3877.1,3877.0,2.74138501]
[1760782260362,0.04496787,3877.1,3877.0,2.53240455]
[1760782262817,0.04496787,3877.1,3877.0,2.08980455]
[1760782267317,0.46896787,3877.1,3877.0,2.08980455]
[1760782268799,0.46896787,3877.1,3877.0,0.52438292]
[1760782269316,0.04496787,3877.1,3877.0,0.52438292]
[1760782269534,12.46604502,3877.1,3877.0,0.52438292]
[1760782269709,3.49191802,3877.1,3877.0,0.52438292]
[1760782271944,4.68115502,3877.1,3877.0,0.52438292]
[1760782272147,7.26040239,3877.1,3877.0,0.52438292]
[1760782272447,4.68115502,3877.1,3877.0,0.52438292]
[1760782272658,4.63618715,3877.1,3877.0,0.52438292]
[1760782273014,15.50513815,3877.1,3877.0,0.52438292]
[1760782273231,11.37477715,3877.1,3877.0,0.52438292]
[1760782273550,6.57669415,3877.1,3877.0,0.52438292]
[1760782273945,13.40371115,3877.1,3877.0,0.52438292]
[1760782274322,12.63517715,3877.1,3877.0,0.52438292]
[1760782274729,10.82075115,3877.1,3877.0,0.52438292]
[1760782275046,9.63314815,3877.1,3877.0,0.52438292]
[1760782275545,8.25524515,3877.1,3877.0,0.52438292]
[1760782275713,8.30021573,3877.1,3877.0,0.52438292]
[1760782275918,0.55082073,3877.1,3877.0,0.52438292]
[1760782276133,0.04497058,3877.1,3877.0,0.52438292]
[1760782279318,0.04497058,3877.1,3877.0,0.97758292]
[1760782280535,0.04497058,3877.1,3877.0,2.54300455]
[1760782282450,0.40459509,3877.5,3877.0,2.54300455]
[1760782282754,0.40459509,3877.5,3877.1,0.4532]
[1760782283235,0.40459509,3877.5,3877.2,0.4532]
[1760782283427,0.001,3877.7,3877.3,0.4532]
[1760782283623,0.001,3877.7,3877.4,1.56542163]
[1760782283844,0.001,3877.7,3877.5,1.56542163]
[1760782284457,0.001,3877.7,3877.6,0.4532]
[1760782284952,0.001,3877.7,3877.1,0.2201]
[1760782285255,0.001,3877.7,3877.2,0.4532]
[1760782285756,0.1288,3877.2,3877.1,0.2201]
[1760782286326,0.1288,3877.2,3877.1,0.6733]
[1760782286835,0.1288,3877.2,3877.1,0.2201]
[1760782287041,0.1737612,3877.2,3877.1,0.2201]
[1760782288123,0.1737612,3877.2,3877.1,0.6733]
[1760782289858,0.1737612,3877.2,3877.1,2.23872163]
[1760782290061,0.1737612,3877.2,3877.1,2.51503209]
[1760782293266,0.001,3877.7,3877.1,0.94961046]
[1760782293451,0.001,3877.7,3877.6,2.57891479]
[1760782293871,0.001,3877.7,3877.6,3.05790393]
[1760782294079,0.001,3877.7,3877.6,3.13553288]
[1760782296574,0.001,3877.7,3877.6,0.55661809]
[1760782296751,0.001,3877.7,3877.6,3.13553288]
[1760782296952,0.001,3877.7,3877.6,1.12808077]
[1760782297153,0.001,3877.7,3877.6,0.10341809]
[1760782297455,0.001,3877.7,3877.1,0.6189]
[1760782297663,0.04595631,3877.7,3877.3,0.454]
[1760782298285,0.04595631,3877.7,3877.4,0.454]
[1760782298446,0.04595631,3877.7,3877.1,0.2201]
[1760782298651,0.04595631,3877.7,3877.2,1.56542163]
[1760782298850,0.04595631,3877.7,3877.3,1.56542163]
[1760782298851,0.44275631,3877.7,3877.3,1.56542163]
[1760782300311,0.04595631,3877.7,3877.3,1.56542163]
[1760782301521,0.04595631,3877.7,3877.3,2.01942163]
[1760782302306,0.04595631,3877.7,3877.3,2.29420331]
[1760782303588,0.04595631,3877.7,3877.3,1.56542163]
[1760782304010,0.04595631,3877.7,3877.0,0.97838292]
[1760782304011,0.3948,3877.6,3877.4,1.56542163]
[1760782304318,0.3948,3877.5,3877.4,1.56542163]
[1760782304607,0.3948,3877.5,3877.1,1.56542163]
[1760782304797,0.04595631,3877.7,3877.1,1.56542163]
[1760782304997,0.3948,3877.6,3877.1,1.56542163]
[1760782305205,0.3948,3877.5,3877.1,1.56542163]
[1760782305399,0.001,3877.7,3877.1,1.56542163]
[1760782305400,0.3948,3877.4,3877.1,1.56542163]
[1760782305599,0.001,3877.7,3877.1,1.56542163]
[1760782305995,0.001,3877.7,3877.1,2.24002163]
[1760782306179,0.001,3877.7,3877.1,1.78602163]
[1760782306379,0.3948,3877.6,3877.1,1.56542163]
[1760782306717,0.3948,3877.5,3877.1,1.56542163]
[1760782307015,0.3948,3877.4,3877.1,1.56542163]
[1760782308138,0.04496171,3877.4,3877.1,1.56542163]
[1760782308338,0.04496171,3877.4,3877.2,0.40458111]
[1760782310222,0.04496171,3877.4,3877.3,1.56542163]
[1760782314543,0.04496171,3877.4,3877.3,1.97000274]
[1760782315626,0.43976171,3877.4,3877.3,1.97000274]
[1760782317445,0.43976171,3877.4,3877.3,1.97200274]
[1760782320218,0.90831663,3877.4,3877.3,1.97200274]
[1760782320517,0.90831663,3877.4,3877.3,1.56742163]
[1760782320716,20.41556287,3877.4,3877.3,0.002]
[1760782320916,6.53508263,3877.4,3877.3,0.002]
[1760782321121,0.51351663,3877.4,3877.3,0.002]
[1760782321322,0.40459201,3877.5,3877.3,0.002]
[1760782321722,0.79939201,3877.5,3877.3,0.002]
[1760782321923,0.3948,3877.4,3877.3,0.002]
[1760782323841,0.43976698,3877.4,3877.3,0.002]
[1760782325454,4.59303298,3877.4,3877.3,0.002]
[1760782325655,5.95224116,3877.4,3877.3,0.002]
[1760782327031,1.79897516,3877.4,3877.3,0.002]
[1760782327236,0.04496698,3877.4,3877.3,0.002]
[1760782327450,0.43976698,3877.4,3877.3,0.002]
[1760782328726,0.04496698,3877.4,3877.3,0.002]
[1760782328957,0.44958232,3877.4,3877.3,0.002]
[1760782331034,0.84438232,3877.4,3877.3,0.002]
[1760782332062,1.57083287,3877.4,3877.3,0.002]
[1760782332628,0.77141753,3877.4,3877.3,0.002]
[1760782335747,1.16621753,3877.4,3877.3,0.002]
[1760782336336,0.77141753,3877.4,3877.3,0.002]
[1760782336536,0.04496698,3877.4,3877.3,0.002]
[1760782336757,0.04496698,3877.4,3877.3,2.3433342]
[1760782337164,0.40560358,3877.7,3877.3,2.3433342]
[1760782337463,0.40560358,3877.7,3877.3,2.8039342]
[1760782337633,0.40560358,3877.7,3877.3,1.56742163]
[1760782337838,0.40560358,3877.7,3877.4,0.77591257]
[1760782338037,0.40560358,3877.7,3877.4,1.23651257]
[1760782338240,0.40560358,3877.7,3877.4,0.77591257]
[1760782338432,0.40560358,3877.7,3877.5,0.4606]
[1760782338836,0.1288,3877.5,3877.4,0.77591056]
[1760782339169,0.1288,3877.5,3877.3,1.56742163]
[1760782339366,0.40560358,3877.7,3877.3,2.02802163]
[1760782339560,0.40560358,3877.7,3877.4,0.77591056]
[1760782339773,0.40560358,3877.7,3877.5,1.56542163]
[1760782340481,0.40560358,3877.7,3877.6,0.77591056]
[1760782340777,0.45056685,3877.7,3877.6,0.77591056]
[1760782343072,0.1288,3877.6,3877.5,1.56542163]
[1760782343734,0.1288,3877.6,3877.5,2.34133219]
[1760782343941,0.1288,3877.6,3877.5,1.56542163]
[1760782345254,0.5198,3877.6,3877.5,1.56542163]
[1760782346674,0.1288,3877.6,3877.5,1.56542163]
[1760782347577,10.65088,3877.6,3877.5,1.56542163]
[1760782347758,10.263363,3877.6,3877.5,1.56542163]
[1760782347964,9.719572,3877.6,3877.5,1.56542163]
[1760782348160,11.39890732,3877.6,3877.5,1.56542163]
[1760782348359,8.55713532,3877.6,3877.5,1.56542163]
[1760782348678,6.37836132,3877.6,3877.5,1.56542163]
[1760782349053,8.95727611,3877.6,3877.5,1.56542163]
[1760782349459,12.40452311,3877.6,3877.5,1.56542163]
[1760782350366,13.83436211,3877.6,3877.5,1.56542163]
[1760782350568,11.95051111,3877.6,3877.5,1.56542163]
[1760782350766,10.50213111,3877.6,3877.5,1.56542163]
[1760782351482,9.8191693,3877.6,3877.4,1.56542163]
[1760782351647,10.24139243,3877.5,3877.4,1.56542163]
[1760782352150,7.02194243,3877.5,3877.4,1.56542163]
[1760782353892,0.1288,3877.4,3877.3,0.002]
[1760782354391,3.84019543,3877.5,3877.3,0.43]
[1760782354754,3.84019543,3877.5,3877.4,0.002]
[1760782355953,4.24479857,3877.5,3877.4,0.002]
[1760782357482,4.69109857,3877.5,3877.4,0.002]
[1760782357986,4.24479857,3877.5,3877.4,0.002]
[1760782358392,0.40460314,3877.5,3877.4,0.002]
[1760782359187,0.40460314,3877.5,3877.4,0.43]
[1760782360286,0.40460314,3877.5,3877.4,0.002]
[1760782360693,0.40460314,3877.5,3877.4,0.43]
[1760782361963,0.04596327,3877.7,3877.4,0.43]
[1760782362183,0.04596327,3877.7,3877.5,0.428]
[1760782362872,0.04596327,3877.7,3877.6,0.428]
[1760782363070,0.001,3877.7,3877.6,0.67054216]
[1760782363393,0.001,3877.7,3877.6,0.428]
[1760782364803,0.001,3877.7,3877.6,0.856]
[1760782366073,0.001,3877.7,3877.4,1.56742163]
[1760782366610,0.001,3877.7,3877.4,1.99542163]
[1760782366988,0.04596231,3877.7,3877.4,1.99542163]
[1760782367395,0.04596231,3877.7,3877.4,1.56742163]
[1760782368505,0.04596231,3877.7,3877.4,2.34331814]
[1760782369217,0.04596231,3877.7,3877.5,1.56542163]
[1760782371319,0.04596231,3877.7,3877.5,1.99342163]
[1760782371882,0.04596231,3877.7,3877.5,2.34130409]
[1760782372080,0.04596231,3877.7,3877.6,0.428]
[1760782372610,0.04596231,3877.7,3877.6,2.39798964]
[1760782372809,0.04596231,3877.7,3877.6,2.6381886]
[1760782373193,0.04596231,3877.7,3877.6,2.39798964]
[1760782373510,0.04596231,3877.7,3877.6,1.96998964]
[1760782373901,0.04596231,3877.7,3877.6,2.39798964]
[1760782374814,0.04596231,3877.7,3877.6,1.96998964]
[1760782380522,0.41826231,3877.7,3877.6,1.96998964]
[1760782380690,0.41826231,3877.7,3877.6,1.56542163]
[1760782383724,1.20107309,3877.7,3877.6,1.56542163]
[1760782383919,27.42126737,3877.7,3877.6,1.56542163]
[1760782384955,25.27716137,3877.7,3877.6,1.56542163]
[1760782385530,12.15335047,3877.7,3877.6,1.56542163]
[1760782385735,11.08095247,3877.7,3877.6,1.56542163]
[1760782385935,20.68331847,3877.7,3877.6,1.56542163]
[1760782386135,20.63835616,3877.7,3877.6,1.56542163]
[1760782386348,19.87253316,3877.7,3877.6,1.56542163]
[1760782386525,19.27553316,3877.7,3877.6,1.56542163]
[1760782386963,37.15039316,3877.7,3877.4,0.002]
[1760782387165,18.6615913,3877.5,3877.4,0.002]
[1760782387346,18.0902493,3877.5,3877.4,0.002]
[1760782387531,13.2780153,3877.5,3877.4,0.002]
[1760782387737,6.7446073,3877.5,3877.4,0.002]
[1760782387949,7.4873253,3877.5,3877.4,0.002]
[1760782388150,8.27013608,3877.5,3877.4,0.002]
[1760782388459,6.53342308,3877.5,3877.4,0.002]
[1760782388654,7.59247586,3877.7,3877.4,0.002]
[1760782388655,5.01362758,3877.7,3877.4,0.002]
[1760782388958,7.59248178,3877.7,3877.4,0.002]
[1760782389440,7.96478178,3877.7,3877.4,0.002]
[1760782389643,5.01362758,3877.7,3877.4,0.002]
[1760782391247,5.01362758,3877.7,3877.5,0.002]
[1760782391448,5.83690675,3877.7,3877.5,0.002]
[1760782393350,8.41575688,3877.7,3877.5,0.002]
[1760782393688,8.78805688,3877.7,3877.5,0.002]
[1760782393896,15.443176,3877.6,3877.5,0.002]
[1760782394058,10.78117,3877.6,3877.5,0.002]
[1760782394385,10.99449579,3877.6,3877.5,0.002]
[1760782395052,8.106281,3877.6,3877.5,0.002]
[1760782396384,8.15124681,3877.6,3877.5,0.002]
[1760782396787,7.52607981,3877.6,3877.5,0.002]
[1760782397084,10.1049946,3877.6,3877.5,0.002]
[1760782397259,11.97936637,3877.6,3877.5,0.002]
[1760782399284,25.78087937,3877.6,3877.5,0.002]
[1760782399596,24.49837937,3877.6,3877.5,0.002]
[1760782399804,19.38893937,3877.6,3877.5,0.002]
[1760782400264,4.87055237,3877.6,3877.5,0.002]
[1760782400460,26.59130337,3877.6,3877.5,0.002]
[1760782400697,21.60619737,3877.6,3877.5,0.002]
[1760782401289,4.87055237,3877.6,3877.5,0.002]
[1760782401459,10.52383737,3877.6,3877.5,0.002]
[1760782401665,4.70621058,3877.6,3877.5,0.002]
[1760782402089,1.91933758,3877.6,3877.5,0.002]
[1760782402686,5.21406158,3877.6,3877.5,0.002]
[1760782402991,7.79297637,3877.6,3877.5,0.002]
[1760782405274,5.21406158,3877.6,3877.5,0.002]
[1760782406078,7.79297637,3877.6,3877.5,0.002]
[1760782406277,8.16527637,3877.6,3877.5,0.002]
[1760782407800,17.02254337,3877.6,3877.5,0.002]
[1760782408095,15.60943537,3877.6,3877.5,0.002]
[1760782408593,11.63681037,3877.6,3877.5,0.002]
[1760782408799,13.00871237,3877.6,3877.5,0.002]
[1760782408968,12.63641237,3877.6,3877.5,0.002]
[1760782409464,11.15910537,3877.6,3877.5,0.002]
[1760782409664,15.73150837,3877.6,3877.5,0.002]
[1760782410366,16.10380837,3877.6,3877.5,0.002]
[1760782410781,19.49897937,3877.6,3877.5,0.002]
[1760782411167,18.06580637,3877.6,3877.5,0.002]
[1760782411903,19.84587237,3877.6,3877.5,0.002]
[1760782412099,18.41264337,3877.6,3877.5,0.002]
[1760782413017,19.20761437,3877.6,3877.5,0.002]
[1760782413915,19.68919937,3877.6,3877.5,0.002]
[1760782414872,20.17703537,3877.6,3877.5,0.002]
[1760782415303,19.03522737,3877.6,3877.5,0.002]
[1760782416087,26.61178337,3877.6,3877.5,0.002]
[1760782416987,27.71258437,3877.6,3877.5,0.002]
[1760782417794,27.29644037,3877.6,3877.5,0.002]
[1760782417995,32.90609137,3877.6,3877.5,0.002]
[1760782418199,32.86112556,3877.6,3877.5,0.002]
[1760782418395,26.55208856,3877.6,3877.5,0.002]
[1760782418706,25.45150056,3877.6,3877.5,0.002]
[1760782419122,25.80815356,3877.6,3877.5,0.002]
[1760782419581,25.53381856,3877.6,3877.5,0.002]
[1760782419982,28.47942856,3877.6,3877.5,0.002]
[1760782420280,28.82633547,3877.6,3877.5,0.002]
[1760782420510,29.27596641,3877.6,3877.5,0.002]
[1760782421139,35.62212441,3877.6,3877.5,0.002]
[1760782421740,35.92929274,3877.6,3877.5,0.002]
[1760782422838,23.15796974,3877.6,3877.5,0.002]
[1760782423139,5.2752175,3877.6,3877.5,0.002]
[1760782423338,16.1200685,3877.6,3877.5,0.002]
[1760782423640,15.71541078,3877.6,3877.5,0.002]
[1760782424038,13.13304478,3877.6,3877.5,0.002]
[1760782424262,20.40947678,3877.6,3877.5,0.002]
[1760782425339,22.53910878,3877.6,3877.5,0.002]
[1760782425912,20.53910878,3877.6,3877.5,0.002]
[1760782426312,22.53910878,3877.6,3877.5,0.002]
[1760782426540,21.34491278,3877.6,3877.5,0.002]
[1760782427042,21.74954714,3877.6,3877.5,0.002]
[1760782427416,23.36131414,3877.6,3877.5,0.002]
[1760782428239,23.73361414,3877.6,3877.5,0.002]
[1760782428437,26.50131714,3877.6,3877.5,0.002]
[1760782429444,32.05281614,3877.6,3877.5,0.002]
[1760782430437,34.42957314,3877.6,3877.5,0.002]
[1760782431453,34.62854914,3877.6,3877.5,0.002]
[1760782431656,34.93570565,3877.6,3877.5,0.002]
[1760782431844,35.28261256,3877.6,3877.5,0.002]
[1760782432555,35.92925756,3877.6,3877.5,0.002]
[1760782434629,35.58235065,3877.6,3877.5,0.002]
[1760782435246,35.21005065,3877.6,3877.5,0.002]
[1760782435970,35.58235065,3877.6,3877.5,0.002]
[1760782436639,33.80199565,3877.6,3877.5,0.002]
[1760782437867,35.58235065,3877.6,3877.5,0.002]
[1760782438669,5.58235065,3877.6,3877.5,0.002]
[1760782438957,35.58235065,3877.6,3877.5,0.002]
[1760782440956,35.17771629,3877.6,3877.5,0.002]
[1760782441460,42.86289239,3877.6,3877.5,0.002]
[1760782441666,42.86289239,3877.6,3877.4,0.002]
[1760782441667,32.5789813,3877.5,3877.4,0.002]
[1760782441964,34.6110388,3877.5,3877.4,0.002]
[1760782443166,34.91819531,3877.5,3877.4,0.002]
[1760782445779,4.91819531,3877.5,3877.4,0.002]
[1760782446078,35.32286973,3877.5,3877.4,0.002]
[1760782446748,5.32286973,3877.5,3877.4,0.002]
[1760782446974,35.32286973,3877.5,3877.4,0.002]
[1760782447549,34.95056973,3877.5,3877.4,0.002]
[1760782447745,16.2072358,3877.5,3877.4,0.002]
[1760782447950,32.05702485,3877.5,3877.4,0.002]
[1760782448688,27.4460068,3877.5,3877.4,0.002]
[1760782449352,25.8509418,3877.5,3877.4,0.002]
[1760782449773,23.7648768,3877.5,3877.4,0.002]
[1760782449968,24.3358748,3877.5,3877.4,0.002]
[1760782450375,21.1375768,3877.5,3877.4,0.002]
[1760782450998,22.2508158,3877.5,3877.4,0.002]
[1760782451297,21.8690068,3877.5,3877.4,0.002]
[1760782451998,24.5886498,3877.5,3877.4,0.002]
[1760782452598,23.4836498,3877.5,3877.4,0.002]
[1760782452799,22.9116528,3877.5,3877.4,0.002]
[1760782452999,21.9116528,3877.5,3877.4,0.002]
[1760782453196,15.2205808,3877.5,3877.4,0.002]
[1760782453397,15.2205808,3877.5,3877.4,0.4433]
[1760782453398,15.17560622,3877.5,3877.4,0.4433]
[1760782453585,12.00129072,3877.5,3877.4,0.4433]
[1760782454087,5.45894472,3877.5,3877.4,0.4433]
[1760782454996,19.57841372,3877.5,3877.4,0.4433]
[1760782455499,19.11761372,3877.5,3877.4,0.4433]
[1760782456002,19.16258575,3877.5,3877.4,0.4433]
[1760782456299,17.54438575,3877.5,3877.4,0.4433]
[1760782456468,14.54438575,3877.5,3877.4,0.4433]
[1760782456669,13.43892875,3877.5,3877.4,0.4433]
[1760782457369,12.86792875,3877.5,3877.4,0.4433]
[1760782457969,3.15742775,3877.5,3877.4,0.4433]
[1760782458187,18.54438375,3877.5,3877.4,0.4433]
[1760782458818,17.61449675,3877.5,3877.4,0.4433]
[1760782459024,18.71949675,3877.5,3877.4,0.4433]
[1760782459330,17.61449675,3877.5,3877.4,0.4433]
[1760782459614,6.03506975,3877.5,3877.4,0.4433]
[1760782459794,5.63039533,3877.5,3877.4,0.4433]
[1760782459999,17.68114933,3877.5,3877.4,0.4433]
[1760782460200,17.68114933,3877.5,3877.4,0.002]
[1760782460201,16.39864933,3877.5,3877.4,0.002]
[1760782460403,16.39864933,3877.5,3877.4,0.4473]
[1760782460790,18.68076315,3877.5,3877.4,0.4473]
[1760782460991,18.68076315,3877.5,3877.4,0.002]
[1760782461219,35.8260762,3877.5,3877.4,0.002]
[1760782461426,29.9698832,3877.5,3877.4,0.002]
[1760782461726,28.75017511,3877.5,3877.4,0.002]
[1760782461891,28.46584111,3877.5,3877.4,0.002]
[1760782462096,28.31793411,3877.5,3877.4,0.002]
[1760782462703,28.72258555,3877.5,3877.4,0.002]
[1760782463108,29.99158355,3877.5,3877.4,0.002]
[1760782463396,29.22607155,3877.5,3877.4,0.002]
[1760782464229,33.52046955,3877.5,3877.4,0.002]
[1760782464407,25.9285255,3877.5,3877.4,0.002]
[1760782464608,25.58161859,3877.5,3877.4,0.002]
[1760782464928,21.41937557,3877.5,3877.4,0.002]
[1760782465101,5.77007757,3877.5,3877.4,0.002]
[1760782465308,20.62845375,3877.5,3877.4,0.002]
[1760782465716,18.24095375,3877.5,3877.4,0.002]
[1760782466305,21.43688975,3877.5,3877.4,0.002]
[1760782466526,10.94690775,3877.5,3877.4,0.002]
[1760782467037,11.32450775,3877.5,3877.4,0.002]
[1760782467224,23.74850242,3877.5,3877.4,0.002]
[1760782468308,27.30336842,3877.5,3877.4,0.002]
[1760782468708,26.46773642,3877.5,3877.4,0.002]
[1760782469237,26.99753742,3877.5,3877.4,0.002]
[1760782470644,26.61993742,3877.5,3877.4,0.002]
[1760782471304,26.60463742,3877.5,3877.4,0.002]
[1760782471713,24.37888742,3877.5,3877.4,0.002]
[1760782471938,24.75648742,3877.5,3877.4,0.002]
[1760782472320,25.75648742,3877.5,3877.4,0.002]
[1760782473349,25.62720542,3877.5,3877.4,0.002]
[1760782473645,17.43347342,3877.5,3877.4,0.002]
[1760782473842,16.21530142,3877.5,3877.4,0.002]
[1760782474140,15.61411642,3877.5,3877.4,0.002]
[1760782474309,9.20642775,3877.5,3877.4,0.002]
[1760782474512,9.20642775,3877.5,3877.4,0.4477]
[1760782475145,9.20642775,3877.5,3877.4,0.002]
[1760782475332,17.40672875,3877.5,3877.4,0.002]
[1760782475723,15.24548275,3877.5,3877.4,0.002]
[1760782476146,14.50594775,3877.5,3877.4,0.002]
[1760782476348,14.40094775,3877.5,3877.4,0.002]
[1760782476641,13.45144975,3877.5,3877.4,0.002]
[1760782476865,15.48543362,3877.5,3877.4,0.002]
[1760782477337,5.14434762,3877.5,3877.4,0.002]
[1760782477538,19.36081175,3877.5,3877.4,0.002]
[1760782478443,3.11036375,3877.5,3877.4,0.002]
[1760782478643,19.36081175,3877.5,3877.4,0.002]
[1760782478830,15.84080575,3877.5,3877.4,0.002]
[1760782479654,16.60117975,3877.5,3877.4,0.002]
[1760782480677,16.85638475,3877.5,3877.4,0.002]
[1760782481638,19.16434475,3877.5,3877.4,0.002]
[1760782481971,5.81693277,3877.5,3877.4,0.4477]
[1760782482454,5.81693277,3877.5,3877.4,0.002]
[1760782482639,20.43923077,3877.5,3877.4,0.002]
[1760782482971,9.13247877,3877.5,3877.4,0.002]
[1760782483550,3.15840477,3877.5,3877.4,0.002]
[1760782483746,11.94919877,3877.5,3877.4,0.002]
[1760782483953,7.39190577,3877.5,3877.4,0.002]
[1760782484676,15.76258077,3877.5,3877.4,0.002]
[1760782484872,4.86784547,3877.5,3877.4,0.002]
[1760782485071,6.61921152,3877.5,3877.4,0.4477]
[1760782485276,6.21456008,3877.5,3877.4,0.8954]
[1760782485769,9.87365338,3877.5,3877.4,0.8954]
[1760782485973,3.88856008,3877.5,3877.4,0.8954]
[1760782486647,3.84358805,3877.5,3877.4,0.8954]
[1760782488066,4.24820702,3877.5,3877.4,0.8954]
[1760782488742,0.40561897,3877.5,3877.4,0.8954]
[1760782488944,0.40561897,3877.5,3877.4,1.16478216]
[1760782489149,0.45058805,3877.5,3877.4,1.16478216]
[1760782489981,0.45058805,3877.5,3877.4,2.73020379]
[1760782490192,0.45058805,3877.5,3877.4,2.46082163]
[1760782490503,0.45058805,3877.5,3877.4,0.8954]
[1760782490504,4.2931761,3877.5,3877.4,0.8954]
[1760782490783,3.88855713,3877.5,3877.4,0.8954]
[1760782492779,11.09994213,3877.5,3877.4,0.4497]
[1760782492979,8.90929113,3877.5,3877.4,0.4497]
[1760782493278,8.86432205,3877.5,3877.4,0.8954]
[1760782493574,8.86432205,3877.5,3877.4,0.4497]
[1760782493978,9.26893507,3877.5,3877.4,0.4497]
[1760782495560,11.84791637,3877.5,3877.4,0.4497]
[1760782495776,9.26893507,3877.5,3877.4,0.4497]
[1760782496177,9.31390403,3877.5,3877.4,0.4497]
[1760782499509,12.34268533,3877.5,3877.4,0.4497]
[1760782499715,21.86360803,3877.5,3877.4,0.002]
[1760782500702,23.48027403,3877.5,3877.4,0.002]
[1760782501514,24.24794696,3877.5,3877.4,0.002]
[1760782501714,26.07623396,3877.5,3877.4,0.002]
[1760782502818,27.743352,3877.5,3877.4,0.002]
[1760782503718,28.018069,3877.5,3877.4,0.002]
[1760782504218,27.61345598,3877.5,3877.4,0.002]
[1760782504439,27.92061249,3877.5,3877.4,0.002]
[1760782504598,28.2675194,3877.5,3877.4,0.002]
[1760782504794,39.7863594,3877.5,3877.4,0.002]
[1760782505007,39.88985,3877.5,3877.4,0.002]
[1760782505388,2.57918085,3877.2,3877.1,0.002]
[1760782505702,28.36297484,3877.2,3877.1,0.002]
[1760782505894,28.40795162,3877.2,3877.1,0.002]
[1760782506105,2.57924737,3877.1,3877.0,0.48140692]
[1760782506296,26.38106735,3877.1,3877.0,0.48140692]
[1760782506503,10.84206737,3877.1,3877.0,0.48140692]
[1760782506821,17.40202305,3877.1,3877.0,0.48140692]
[1760782507016,17.85182305,3877.1,3877.0,0.48140692]
[1760782507219,17.80670649,3877.1,3877.0,0.48140692]
[1760782507521,18.25650649,3877.1,3877.0,0.48140692]
[1760782507717,29.87132549,3877.1,3877.0,0.48140692]
[1760782507918,2.57944696,3876.8,3876.3,0.63896214]
[1760782508118,22.63045496,3876.8,3876.3,0.53546832]
[1760782508332,23.08025496,3876.8,3876.3,0.53546832]
[1760782508634,23.12523336,3876.8,3876.3,0.53546832]
[1760782508798,33.07422536,3876.8,3876.3,0.53546832]
[1760782508997,34.56647906,3876.8,3876.3,0.53546832]
[1760782509232,33.61262606,3876.8,3876.3,0.53546832]
[1760782509932,34.56647906,3876.8,3876.3,0.53546832]
[1760782510739,34.87363557,3876.8,3876.3,0.53546832]
[1760782511408,34.82865717,3876.8,3876.3,0.53546832]
[1760782512321,34.52150066,3876.8,3876.3,0.53546832]
[1760782512819,28.78836566,3876.8,3876.3,0.53546832]
[1760782513047,28.78836566,3876.8,3876.3,0.97066832]
[1760782513642,29.23816566,3876.8,3876.3,0.97066832]
[1760782513825,32.14478266,3876.8,3876.3,0.97066832]
[1760782514346,32.14478266,3876.8,3876.3,0.53546832]